Workbook

Sheet 1-优秀研究生
A1: 材料科学与工程学院 “优秀研究生”荣誉称号汇总表
A2: 院系名称：材料科学与工程学院 | C2: 签字（盖章）： | E2: 填报日期：2025年10月9日
A3: 学号 | B3: 姓名 | C3: 综合素质评价结果 | D3: 所获荣誉称号 （请填写“优秀研究生”） | E3: 备注
A4: 22426146 | B4: 包晨琛 | C4: 优秀 | D4: 优秀研究生
A5: 22326092 | B5: 毕跃飞 | C5: 优秀 | D5: 优秀研究生
A6: 12426116 | B6: 卜梦凡 | C6: 优秀 | D6: 优秀研究生
A7: 12126054 | B7: 蔡露城 | C7: 优秀 | D7: 优秀研究生
A8: 12426055 | B8: 曾钒毓 | C8: 优秀 | D8: 优秀研究生
A9: 12526023 | B9: 曾飞鸿 | C9: 优秀 | D9: 优秀研究生
A10: 22326030 | B10: 陈国栗 | C10: 优秀 | D10: 优秀研究生
A11: 12426096 | B11: 陈汉阳 | C11: 优秀 | D11: 优秀研究生
A12: 12126075 | B12: 陈泓旭 | C12: 优秀 | D12: 优秀研究生
A13: 22426010 | B13: 陈稼臻 | C13: 优秀 | D13: 优秀研究生
A14: 12426020 | B14: 陈龙 | C14: 优秀 | D14: 优秀研究生
A15: 12226023 | B15: 陈明子 | C15: 优秀 | D15: 优秀研究生
A16: 22326075 | B16: 陈婷婷 | C16: 优秀 | D16: 优秀研究生
A17: 12126074 | B17: 陈星宇 | C17: 优秀 | D17: 优秀研究生
A18: 12526017 | B18: 陈宇晖 | C18: 优秀 | D18: 优秀研究生
A19: 22326043 | B19: 陈周萍 | C19: 优秀 | D19: 优秀研究生
A20: 22426067 | B20: 程斐扬 | C20: 优秀 | D20: 优秀研究生
A21: 22426100 | B21: 程敏 | C21: 优秀 | D21: 优秀研究生
A22: 12226072 | B22: 储非 | C22: 优秀 | D22: 优秀研究生
A23: 12426041 | B23: 储迎宇 | C23: 优秀 | D23: 优秀研究生
A24: 22326095 | B24: 崔凯旋 | C24: 优秀 | D24: 优秀研究生
A25: 12126033 | B25: 崔翘鹏 | C25: 优秀 | D25: 优秀研究生
A26: 12126031 | B26: 戴子翔 | C26: 优秀 | D26: 优秀研究生
A27: 22326116 | B27: 党萍萍 | C27: 优秀 | D27: 优秀研究生
A28: 22326005 | B28: 翟羽佳 | C28: 优秀 | D28: 优秀研究生
A29: 12226065 | B29: 丁素娟 | C29: 优秀 | D29: 优秀研究生
A30: 12526090 | B30: 杜管诗涵 | C30: 优秀 | D30: 优秀研究生
A31: 22326093 | B31: 杜温杰 | C31: 优秀 | D31: 优秀研究生
A32: 12226046 | B32: 段欢畅 | C32: 优秀 | D32: 优秀研究生
A33: 12126073 | B33: 范思源 | C33: 优秀 | D33: 优秀研究生
A34: 12126046 | B34: 范云鹏 | C34: 优秀 | D34: 优秀研究生
A35: 12426036 | B35: 方子铭 | C35: 优秀 | D35: 优秀研究生
A36: 22426005 | B36: 冯杨媛 | C36: 优秀 | D36: 优秀研究生
A37: 12326032 | B37: 冯逸丰 | C37: 优秀 | D37: 优秀研究生
A38: 22326119 | B38: 付依 | C38: 优秀 | D38: 优秀研究生
A39: 22426114 | B39: 高邦帅 | C39: 优秀 | D39: 优秀研究生
A40: 12126080 | B40: 高许 | C40: 优秀 | D40: 优秀研究生
A41: 22426056 | B41: 高旭东 | C41: 优秀 | D41: 优秀研究生
A42: 12326100 | B42: 高续洪 | C42: 优秀 | D42: 优秀研究生
A43: 12426069 | B43: 葛天乐 | C43: 优秀 | D43: 优秀研究生
A44: 22326054 | B44: 葛羽中 | C44: 优秀 | D44: 优秀研究生
A45: 12426027 | B45: 弓佳燕 | C45: 优秀 | D45: 优秀研究生
A46: 22326127 | B46: 谷相宜 | C46: 优秀 | D46: 优秀研究生
A47: 12226097 | B47: 郭金泽 | C47: 优秀 | D47: 优秀研究生
A48: 12326047 | B48: 郭静筠 | C48: 优秀 | D48: 优秀研究生
A49: 12126038 | B49: 郭威 | C49: 优秀 | D49: 优秀研究生
A50: 12326108 | B50: 郭晓云 | C50: 优秀 | D50: 优秀研究生
A51: 22326018 | B51: 郭喆 | C51: 优秀 | D51: 优秀研究生
A52: 12226049 | B52: 韩君玮 | C52: 优秀 | D52: 优秀研究生
A53: 12326089 | B53: 韩思佳 | C53: 优秀 | D53: 优秀研究生
A54: 12226077 | B54: 韩雪 | C54: 优秀 | D54: 优秀研究生
A55: 12226026 | B55: 郝逸展 | C55: 优秀 | D55: 优秀研究生
A56: 12226040 | B56: 郝重阳 | C56: 优秀 | D56: 优秀研究生
A57: 12226053 | B57: 何超威 | C57: 优秀 | D57: 优秀研究生
A58: 22426033 | B58: 洪彦棋 | C58: 优秀 | D58: 优秀研究生
A59: 12426088 | B59: 侯俊杰 | C59: 优秀 | D59: 优秀研究生
A60: 12426060 | B60: 侯徐泳 | C60: 优秀 | D60: 优秀研究生
A61: 22426120 | B61: 胡安荣 | C61: 优秀 | D61: 优秀研究生
A62: 12326042 | B62: 胡杜楠 | C62: 优秀 | D62: 优秀研究生
A63: 12526015 | B63: 胡丽蓉 | C63: 优秀 | D63: 优秀研究生
A64: 12226056 | B64: 胡炜媛 | C64: 优秀 | D64: 优秀研究生
A65: 12426030 | B65: 黄含艳 | C65: 优秀 | D65: 优秀研究生
A66: 12126028 | B66: 黄慧琴 | C66: 优秀 | D66: 优秀研究生
A67: 12226070 | B67: 黄梓航 | C67: 优秀 | D67: 优秀研究生
A68: 12126024 | B68: 贾喻晓 | C68: 优秀 | D68: 优秀研究生
A69: 22426081 | B69: 江欣 | C69: 优秀 | D69: 优秀研究生
A70: 12526031 | B70: 蒋嘉惠琦 | C70: 优秀 | D70: 优秀研究生
A71: 22426015 | B71: 蒋嘉蔚 | C71: 优秀 | D71: 优秀研究生
A72: 22326132 | B72: 蒋双婷 | C72: 优秀 | D72: 优秀研究生
A73: 22326097 | B73: 蒋昕捷 | C73: 优秀 | D73: 优秀研究生
A74: 12326044 | B74: 解昕宇 | C74: 优秀 | D74: 优秀研究生
A75: 12426016 | B75: 金东尔 | C75: 优秀 | D75: 优秀研究生
A76: 22426011 | B76: 靳思雨 | C76: 优秀 | D76: 优秀研究生
A77: 12126050 | B77: 鞠志杰 | C77: 优秀 | D77: 优秀研究生
A78: 22326104 | B78: 寇元昊 | C78: 优秀 | D78: 优秀研究生
A79: 12426018 | B79: 邝君儿 | C79: 优秀 | D79: 优秀研究生
A80: 22326060 | B80: 雷博睿 | C80: 优秀 | D80: 优秀研究生
A81: 22326045 | B81: 雷诺 | C81: 优秀 | D81: 优秀研究生
A82: 22426063 | B82: 李丹 | C82: 优秀 | D82: 优秀研究生
A83: 12326106 | B83: 李光 | C83: 优秀 | D83: 优秀研究生
A84: 12426118 | B84: 李桂秀 | C84: 优秀 | D84: 优秀研究生
A85: 22426020 | B85: 李涵瑜 | C85: 优秀 | D85: 优秀研究生
A86: 12226095 | B86: 李佳 | C86: 优秀 | D86: 优秀研究生
A87: 12226024 | B87: 李佳乐 | C87: 优秀 | D87: 优秀研究生
A88: 22426071 | B88: 李骏城 | C88: 优秀 | D88: 优秀研究生
A89: 12426109 | B89: 李莲瑜 | C89: 优秀 | D89: 优秀研究生
A90: 12226017 | B90: 李萍萍 | C90: 优秀 | D90: 优秀研究生
A91: 12326055 | B91: 李婷 | C91: 优秀 | D91: 优秀研究生
A92: 12226074 | B92: 李文丽 | C92: 优秀 | D92: 优秀研究生
A93: 12326036 | B93: 李闻天 | C93: 优秀 | D93: 优秀研究生
A94: 12326069 | B94: 李想 | C94: 优秀 | D94: 优秀研究生
A95: 12226087 | B95: 李昕阔 | C95: 优秀 | D95: 优秀研究生
A96: 12126027 | B96: 李旭 | C96: 优秀 | D96: 优秀研究生
A97: 12126082 | B97: 李昱征 | C97: 优秀 | D97: 优秀研究生
A98: 12426013 | B98: 李云龙 | C98: 优秀 | D98: 优秀研究生
A99: 22426057 | B99: 李梓言 | C99: 优秀 | D99: 优秀研究生
A100: 22326051 | B100: 厉梦璐 | C100: 优秀 | D100: 优秀研究生
A101: 22426123 | B101: 栗艳磊 | C101: 优秀 | D101: 优秀研究生
A102: 12326059 | B102: 梁珈源 | C102: 优秀 | D102: 优秀研究生
A103: 12126022 | B103: 林春曦 | C103: 优秀 | D103: 优秀研究生
A104: 12326029 | B104: 林煌 | C104: 优秀 | D104: 优秀研究生
A105: 12126077 | B105: 林珈民 | C105: 优秀 | D105: 优秀研究生
A106: 12326101 | B106: 林坪 | C106: 优秀 | D106: 优秀研究生
A107: 12426005 | B107: 林圣涵 | C107: 优秀 | D107: 优秀研究生
A108: 12326024 | B108: 林思宸 | C108: 优秀 | D108: 优秀研究生
A109: 12426113 | B109: 林业超 | C109: 优秀 | D109: 优秀研究生
A110: 12426012 | B110: 刘宸玮 | C110: 优秀 | D110: 优秀研究生
A111: 12426058 | B111: 刘福璞 | C111: 优秀 | D111: 优秀研究生
A112: 12226044 | B112: 刘慧 | C112: 优秀 | D112: 优秀研究生
A113: 12126026 | B113: 刘继伟 | C113: 优秀 | D113: 优秀研究生
A114: 22426052 | B114: 刘嘉璐 | C114: 优秀 | D114: 优秀研究生
A115: 12226082 | B115: 刘可凡 | C115: 优秀 | D115: 优秀研究生
A116: 22426030 | B116: 刘鹏飞 | C116: 优秀 | D116: 优秀研究生
A117: 12426014 | B117: 刘如敏 | C117: 优秀 | D117: 优秀研究生
A118: 12526016 | B118: 刘森 | C118: 优秀 | D118: 优秀研究生
A119: 12326027 | B119: 刘胜昊 | C119: 优秀 | D119: 优秀研究生
A120: 12126081 | B120: 刘硕 | C120: 优秀 | D120: 优秀研究生
A121: 12226081 | B121: 刘雯 | C121: 优秀 | D121: 优秀研究生
A122: 22426096 | B122: 刘心逸 | C122: 优秀 | D122: 优秀研究生
A123: 12426042 | B123: 刘泽元 | C123: 优秀 | D123: 优秀研究生
A124: 12326014 | B124: 刘振武 | C124: 优秀 | D124: 优秀研究生
A125: 12226018 | B125: 娄刚 | C125: 优秀 | D125: 优秀研究生
A126: 12226076 | B126: 娄子晨 | C126: 优秀 | D126: 优秀研究生
A127: 22426021 | B127: 卢嘉敏 | C127: 优秀 | D127: 优秀研究生
A128: 12426054 | B128: 鲁晓楠 | C128: 优秀 | D128: 优秀研究生
A129: 22326112 | B129: 罗希良 | C129: 优秀 | D129: 优秀研究生
A130: 12126068 | B130: 罗祯 | C130: 优秀 | D130: 优秀研究生
A131: 12426046 | B131: 罗子昂 | C131: 优秀 | D131: 优秀研究生
A132: 12226038 | B132: 骆逸欣 | C132: 优秀 | D132: 优秀研究生
A133: 22426142 | B133: 马璐 | C133: 优秀 | D133: 优秀研究生
A134: 12326097 | B134: 孟睿阳 | C134: 优秀 | D134: 优秀研究生
A135: 22326110 | B135: 孟志 | C135: 优秀 | D135: 优秀研究生
A136: 12526063 | B136: 欧翊邦 | C136: 优秀 | D136: 优秀研究生
A137: 12426004 | B137: 裴振 | C137: 优秀 | D137: 优秀研究生
A138: 12326079 | B138: 钱昇 | C138: 优秀 | D138: 优秀研究生
A139: 12226085 | B139: 秦腾腾 | C139: 优秀 | D139: 优秀研究生
A140: 22326035 | B140: 曲优异 | C140: 优秀 | D140: 优秀研究生
A141: 22326065 | B141: 饶永娴 | C141: 优秀 | D141: 优秀研究生
A142: 12326111 | B142: 阮超 | C142: 优秀 | D142: 优秀研究生
A143: 22426066 | B143: 阮明 | C143: 优秀 | D143: 优秀研究生
A144: 12326050 | B144: 申倩倩 | C144: 优秀 | D144: 优秀研究生
A145: 12326096 | B145: 沈漪杰 | C145: 优秀 | D145: 优秀研究生
A146: 12326067 | B146: 沈云鹏 | C146: 优秀 | D146: 优秀研究生
A147: 22426076 | B147: 史钧达 | C147: 优秀 | D147: 优秀研究生
A148: 12526009 | B148: 宋潇敏 | C148: 优秀 | D148: 优秀研究生
A149: 22326118 | B149: 孙静怡 | C149: 优秀 | D149: 优秀研究生
A150: 22326023 | B150: 孙秀粤 | C150: 优秀 | D150: 优秀研究生
A151: 12426085 | B151: 唐安辰 | C151: 优秀 | D151: 优秀研究生
A152: 12426056 | B152: 唐嘉轩 | C152: 优秀 | D152: 优秀研究生
A153: 12226057 | B153: 滕骥 | C153: 优秀 | D153: 优秀研究生
A154: 12326039 | B154: 田静 | C154: 优秀 | D154: 优秀研究生
A155: 22426017 | B155: 田静若兰 | C155: 优秀 | D155: 优秀研究生
A156: 12426053 | B156: 田君鸿 | C156: 优秀 | D156: 优秀研究生
A157: 12326072 | B157: 田雨竹 | C157: 优秀 | D157: 优秀研究生
A158: 12426070 | B158: 童惠敏 | C158: 优秀 | D158: 优秀研究生
A159: 12326074 | B159: 汪佳俊 | C159: 优秀 | D159: 优秀研究生
A160: 22326090 | B160: 王贝宁 | C160: 优秀 | D160: 优秀研究生
A161: 12226035 | B161: 王琛 | C161: 优秀 | D161: 优秀研究生
A162: 12326090 | B162: 王国强 | C162: 优秀 | D162: 优秀研究生
A163: 12326084 | B163: 王佳倩 | C163: 优秀 | D163: 优秀研究生
A164: 12426019 | B164: 王嘉晖 | C164: 优秀 | D164: 优秀研究生
A165: 12226042 | B165: 王金泽 | C165: 优秀 | D165: 优秀研究生
A166: 12426080 | B166: 王柯浩 | C166: 优秀 | D166: 优秀研究生
A167: 12226091 | B167: 王来滨 | C167: 优秀 | D167: 优秀研究生
A168: 22326048 | B168: 王孟亚 | C168: 优秀 | D168: 优秀研究生
A169: 12126021 | B169: 王敏康 | C169: 优秀 | D169: 优秀研究生
A170: 12126061 | B170: 王茜 | C170: 优秀 | D170: 优秀研究生
A171: 22326123 | B171: 王世昌 | C171: 优秀 | D171: 优秀研究生
A172: 12526011 | B172: 王婷婷 | C172: 优秀 | D172: 优秀研究生
A173: 12326054 | B173: 王婷玉 | C173: 优秀 | D173: 优秀研究生
A174: 22426077 | B174: 王琬菁 | C174: 优秀 | D174: 优秀研究生
A175: 12326030 | B175: 王文波 | C175: 优秀 | D175: 优秀研究生
A176: 22326129 | B176: 王文雅 | C176: 优秀 | D176: 优秀研究生
A177: 12126047 | B177: 王笑 | C177: 优秀 | D177: 优秀研究生
A178: 12226083 | B178: 王昕洋 | C178: 优秀 | D178: 优秀研究生
A179: 12126072 | B179: 王旭 | C179: 优秀 | D179: 优秀研究生
A180: 12226045 | B180: 王严 | C180: 优秀 | D180: 优秀研究生
A181: 22326036 | B181: 王燕 | C181: 优秀 | D181: 优秀研究生
A182: 12226034 | B182: 王耀 | C182: 优秀 | D182: 优秀研究生
A183: 22426059 | B183: 王一卓 | C183: 优秀 | D183: 优秀研究生
A184: 22426080 | B184: 王艺飞 | C184: 优秀 | D184: 优秀研究生
A185: 12126049 | B185: 王昱卜 | C185: 优秀 | D185: 优秀研究生
A186: 22326039 | B186: 王云竹 | C186: 优秀 | D186: 优秀研究生
A187: 22426023 | B187: 王梓同 | C187: 优秀 | D187: 优秀研究生
A188: 22326111 | B188: 王梓懿 | C188: 优秀 | D188: 优秀研究生
A189: 12326048 | B189: 魏吉垚 | C189: 优秀 | D189: 优秀研究生
A190: 22326013 | B190: 魏星 | C190: 优秀 | D190: 优秀研究生
A191: 12426095 | B191: 文星 | C191: 优秀 | D191: 优秀研究生
A192: 12126017 | B192: 沃子浩 | C192: 优秀 | D192: 优秀研究生
A193: 22326029 | B193: 吴佳玲 | C193: 优秀 | D193: 优秀研究生
A194: 22426138 | B194: 吴金哲 | C194: 优秀 | D194: 优秀研究生
A195: 12326038 | B195: 吴梦怡 | C195: 优秀 | D195: 优秀研究生
A196: 22326098 | B196: 吴淇 | C196: 优秀 | D196: 优秀研究生
A197: 12226030 | B197: 吴若楷 | C197: 优秀 | D197: 优秀研究生
A198: 22326137 | B198: 吴涛 | C198: 优秀 | D198: 优秀研究生
A199: 12526010 | B199: 吴天宇 | C199: 优秀 | D199: 优秀研究生
A200: 12426100 | B200: 吴一希 | C200: 优秀 | D200: 优秀研究生
... 76 more rows

Sheet 2-五好研究生
A1: 材料科学与工程学院 “五好研究生”荣誉称号汇总表
A2: 院系名称：材料科学与工程学院 | C2: 签字（盖章）： | E2: 填报日期：
A3: 学号 | B3: 姓名 | C3: 综合素质评价结果 | D3: 所获荣誉称号 （请填写“五好研究生”） | E3: 备注
A4: 12126054 | B4: 蔡露城 | C4: 优秀 | D4: 五好研究生
A5: 12426055 | B5: 曾钒毓 | C5: 优秀 | D5: 五好研究生
A6: 12426096 | B6: 陈汉阳 | C6: 优秀 | D6: 五号研究生
A7: 12126075 | B7: 陈泓旭 | C7: 优秀 | D7: 五好研究生
A8: 12226023 | B8: 陈明子 | C8: 优秀 | D8: 五号研究生
A9: 22326075 | B9: 陈婷婷 | C9: 优秀 | D9: 五好研究生
A10: 12126074 | B10: 陈星宇 | C10: 优秀 | D10: 五好研究生
A11: 12526017 | B11: 陈宇晖 | C11: 优秀 | D11: 五号研究生
A12: 22326043 | B12: 陈周萍 | C12: 优秀 | D12: 五好研究生
A13: 22426100 | B13: 程敏 | C13: 优秀 | D13: 五好研究生
A14: 12226072 | B14: 储非 | C14: 优秀 | D14: 五好研究生
A15: 22326095 | B15: 崔凯旋 | C15: 优秀 | D15: 五好研究生
A16: 12126031 | B16: 戴子翔 | C16: 优秀 | D16: 五好研究生
A17: 22326116 | B17: 党萍萍 | C17: 优秀 | D17: 五好研究生
A18: 12226065 | B18: 丁素娟 | C18: 优秀 | D18: 五号研究生
A19: 12526090 | B19: 杜管诗涵 | C19: 优秀 | D19: 五好研究生
A20: 22326093 | B20: 杜温杰 | C20: 优秀 | D20: 五好研究生
A21: 12226046 | B21: 段欢畅 | C21: 优秀 | D21: 五好研究生
A22: 12126073 | B22: 范思源 | C22: 优秀 | D22: 五好研究生
A23: 12126046 | B23: 范云鹏 | C23: 优秀 | D23: 五好研究生
A24: 22426005 | B24: 冯杨媛 | C24: 优秀 | D24: 五好研究生
A25: 12326032 | B25: 冯逸丰 | C25: 优秀 | D25: 五好研究生
A26: 22426056 | B26: 高旭东 | C26: 优秀 | D26: 五好研究生
A27: 12326100 | B27: 高续洪 | C27: 优秀 | D27: 五好研究生
A28: 22326054 | B28: 葛羽中 | C28: 优秀 | D28: 五好研究生
A29: 12226097 | B29: 郭金泽 | C29: 优秀 | D29: 五好研究生
A30: 12326047 | B30: 郭静筠 | C30: 优秀 | D30: 五好研究生
A31: 12126038 | B31: 郭威 | C31: 优秀 | D31: 五好研究生
A32: 12326108 | B32: 郭晓云 | C32: 优秀 | D32: 五号研究生
A33: 22326018 | B33: 郭喆 | C33: 优秀 | D33: 五好研究生
A34: 12226049 | B34: 韩君玮 | C34: 优秀 | D34: 五好研究生
A35: 12326089 | B35: 韩思佳 | C35: 优秀 | D35: 五好研究生
A36: 12226053 | B36: 何超威 | C36: 优秀 | D36: 五好研究生
A37: 22426033 | B37: 洪彦棋 | C37: 优秀 | D37: 五好研究生
A38: 12426088 | B38: 侯俊杰 | C38: 优秀 | D38: 五好研究生
A39: 12426060 | B39: 侯徐泳 | C39: 优秀 | D39: 五好研究生
A40: 12326042 | B40: 胡杜楠 | C40: 优秀 | D40: 五好研究生
A41: 12226056 | B41: 胡炜媛 | C41: 优秀 | D41: 五好研究生
A42: 12126024 | B42: 贾喻晓 | C42: 优秀 | D42: 五好研究生
A43: 12526031 | B43: 蒋嘉惠琦 | C43: 优秀 | D43: 五好研究生
A44: 22426015 | B44: 蒋嘉蔚 | C44: 优秀 | D44: 五好研究生
A45: 22326132 | B45: 蒋双婷 | C45: 优秀 | D45: 五好研究生
A46: 12126050 | B46: 鞠志杰 | C46: 优秀 | D46: 五好研究生
A47: 22326104 | B47: 寇元昊 | C47: 优秀 | D47: 五号研究生
A48: 12426018 | B48: 邝君儿 | C48: 优秀 | D48: 五好研究生
A49: 22326060 | B49: 雷博睿 | C49: 优秀 | D49: 五好研究生
A50: 12326106 | B50: 李光 | C50: 优秀 | D50: 五好研究生
A51: 12426118 | B51: 李桂秀 | C51: 优秀 | D51: 五好研究生
A52: 12226024 | B52: 李佳乐 | C52: 优秀 | D52: 五号研究生
A53: 12326055 | B53: 李婷 | C53: 优秀 | D53: 五好研究生
A54: 12226074 | B54: 李文丽 | C54: 优秀 | D54: 五好研究生
A55: 12326036 | B55: 李闻天 | C55: 优秀 | D55: 五好研究生
A56: 12326069 | B56: 李想 | C56: 优秀 | D56: 五好研究生
A57: 12226087 | B57: 李昕阔 | C57: 优秀 | D57: 五好研究生
A58: 12126027 | B58: 李旭 | C58: 优秀 | D58: 五好研究生
A59: 12126082 | B59: 李昱征 | C59: 优秀 | D59: 五好研究生
A60: 12426013 | B60: 李云龙 | C60: 优秀 | D60: 五好研究生
A61: 22326051 | B61: 厉梦璐 | C61: 优秀 | D61: 五好研究生
A62: 12326059 | B62: 梁珈源 | C62: 优秀 | D62: 五好研究生
A63: 12326029 | B63: 林煌 | C63: 优秀 | D63: 五好研究生
A64: 12126077 | B64: 林珈民 | C64: 优秀 | D64: 五好研究生
A65: 12426113 | B65: 林业超 | C65: 优秀 | D65: 五好研究生
A66: 12426012 | B66: 刘宸玮 | C66: 优秀 | D66: 五好研究生
A67: 12226044 | B67: 刘慧 | C67: 优秀 | D67: 五好研究生
A68: 12226082 | B68: 刘可凡 | C68: 优秀 | D68: 五好研究生
A69: 22426030 | B69: 刘鹏飞 | C69: 优秀 | D69: 五号研究生
A70: 12426014 | B70: 刘如敏 | C70: 优秀 | D70: 五好研究生
A71: 12526016 | B71: 刘森 | C71: 优秀 | D71: 五好研究生
A72: 12326027 | B72: 刘胜昊 | C72: 优秀 | D72: 五好研究生
A73: 12126081 | B73: 刘硕 | C73: 优秀 | D73: 五好研究生
A74: 22426096 | B74: 刘心逸 | C74: 优秀 | D74: 五好研究生
A75: 12426042 | B75: 刘泽元 | C75: 优秀 | D75: 五好研究生
A76: 22426021 | B76: 卢嘉敏 | C76: 优秀 | D76: 五好研究生
A77: 12426054 | B77: 鲁晓楠 | C77: 优秀 | D77: 五好研究生
A78: 12126068 | B78: 罗祯 | C78: 优秀 | D78: 五好研究生
A79: 22426142 | B79: 马璐 | C79: 优秀 | D79: 五号研究生
A80: 12326097 | B80: 孟睿阳 | C80: 优秀 | D80: 五好研究生
A81: 22326110 | B81: 孟志 | C81: 优秀 | D81: 五好研究生
A82: 12426004 | B82: 裴振 | C82: 优秀 | D82: 五好研究生
A83: 12326079 | B83: 钱昇 | C83: 优秀 | D83: 五好研究生
A84: 12326050 | B84: 申倩倩 | C84: 优秀 | D84: 五好研究生
A85: 12326096 | B85: 沈漪杰 | C85: 优秀 | D85: 五好研究生
A86: 12326067 | B86: 沈云鹏 | C86: 优秀 | D86: 五好研究生
A87: 12526009 | B87: 宋潇敏 | C87: 优秀 | D87: 五好研究生
A88: 22326118 | B88: 孙静怡 | C88: 优秀 | D88: 五好研究生
A89: 12426056 | B89: 唐嘉轩 | C89: 优秀 | D89: 五号研究生
A90: 22426017 | B90: 田静若兰 | C90: 优秀 | D90: 五号研究生
A91: 12326072 | B91: 田雨竹 | C91: 优秀 | D91: 五好研究生
A92: 22326090 | B92: 王贝宁 | C92: 优秀 | D92: 五好研究生
A93: 12226042 | B93: 王金泽 | C93: 优秀 | D93: 五好研究生
A94: 12426080 | B94: 王柯浩 | C94: 优秀 | D94: 五好研究生
A95: 22326048 | B95: 王孟亚 | C95: 优秀 | D95: 五好研究生
A96: 12126021 | B96: 王敏康 | C96: 优秀 | D96: 五好研究生
A97: 12126061 | B97: 王茜 | C97: 优秀 | D97: 五好研究生
A98: 22326123 | B98: 王世昌 | C98: 优秀 | D98: 五好研究生
A99: 12526011 | B99: 王婷婷 | C99: 优秀 | D99: 五好研究生
A100: 12326054 | B100: 王婷玉 | C100: 优秀 | D100: 五好研究生
A101: 12326030 | B101: 王文波 | C101: 优秀 | D101: 五好研究生
A102: 12226083 | B102: 王昕洋 | C102: 优秀 | D102: 五好研究生
A103: 22426080 | B103: 王艺飞 | C103: 优秀 | D103: 五好研究生
A104: 22426023 | B104: 王梓同 | C104: 优秀 | D104: 五号研究生
A105: 22326111 | B105: 王梓懿 | C105: 优秀 | D105: 五好研究生
A106: 22326013 | B106: 魏星 | C106: 优秀 | D106: 五号研究生
A107: 12426095 | B107: 文星 | C107: 优秀 | D107: 五好研究生
A108: 12126017 | B108: 沃子浩 | C108: 优秀 | D108: 五好研究生
A109: 12326038 | B109: 吴梦怡 | C109: 优秀 | D109: 五好研究生
A110: 22326137 | B110: 吴涛 | C110: 优秀 | D110: 五好研究生
A111: 12526010 | B111: 吴天宇 | C111: 优秀 | D111: 五好研究生
A112: 12126052 | B112: 夏群栋 | C112: 优秀 | D112: 五好研究生
A113: 22426134 | B113: 夏鑫宇 | C113: 优秀 | D113: 五号研究生
A114: 12426009 | B114: 夏宇凡 | C114: 优秀 | D114: 五好研究生
A115: 12426112 | B115: 向阳 | C115: 优秀 | D115: 五好研究生
A116: 22426084 | B116: 肖奕帆 | C116: 优秀 | D116: 五好研究生
A117: 22326050 | B117: 徐颖 | C117: 优秀 | D117: 五好研究生
A118: 12126058 | B118: 闫蕾 | C118: 优秀 | D118: 五好研究生
A119: 12526001 | B119: 严宇超 | C119: 优秀 | D119: 五好研究生
A120: 12526008 | B120: 杨方雯 | C120: 优秀 | D120: 五号研究生
A121: 12126048 | B121: 杨月 | C121: 优秀 | D121: 五好研究生
A122: 12226093 | B122: 杨志逸 | C122: 优秀 | D122: 五好研究生
A123: 22426009 | B123: 尹添威 | C123: 优秀 | D123: 五号研究生
A124: 12526114 | B124: 余程航 | C124: 优秀 | D124: 五好研究生
A125: 12326065 | B125: 詹丽君 | C125: 优秀 | D125: 五号研究生
A126: 12426031 | B126: 张可滢 | C126: 优秀 | D126: 五好研究生
A127: 22426065 | B127: 张利萍 | C127: 优秀 | D127: 五好研究生
A128: 12126029 | B128: 张瑞安 | C128: 优秀 | D128: 五好研究生
A129: 12326083 | B129: 张文强 | C129: 优秀 | D129: 五好研究生
A130: 12426002 | B130: 张正端 | C130: 优秀 | D130: 五好研究生
A131: 12126064 | B131: 张洲晴 | C131: 优秀 | D131: 五好研究生
A132: 22326124 | B132: 赵宇辰 | C132: 优秀 | D132: 五好研究生
A133: 12426115 | B133: 赵志浩 | C133: 优秀 | D133: 五号研究生
A134: 22326109 | B134: 赵壮 | C134: 优秀 | D134: 五好研究生
A135: 12326068 | B135: 郑浩南 | C135: 优秀 | D135: 五好研究生
A136: 22326122 | B136: 郑瑞婷 | C136: 优秀 | D136: 五好研究生
A137: 22326022 | B137: 郑森哲 | C137: 优秀 | D137: 五好研究生
A138: 22326125 | B138: 郑雅昕 | C138: 优秀 | D138: 五好研究生
A139: 22326028 | B139: 郑裕秦 | C139: 优秀 | D139: 五好研究生
A140: 22326002 | B140: 周边边 | C140: 优秀 | D140: 五好研究生
A141: 12526012 | B141: 周福晨 | C141: 优秀 | D141: 五号研究生
A142: 12126020 | B142: 周富威 | C142: 优秀 | D142: 五好研究生
A143: 22326083 | B143: 周英杰 | C143: 优秀 | D143: 五号研究生
A144: 12126063 | B144: 周昱 | C144: 优秀 | D144: 五好研究生
A145: 22426130 | B145: 朱静雯 | C145: 优秀 | D145: 五好研究生
A146: 22326113 | B146: 朱开琦 | C146: 优秀 | D146: 五好研究生

Sheet 3-优秀研究生干部
A1: 材料科学与工程学院 “优秀研究生干部”荣誉称号汇总表
A2: 院系名称：材料科学与工程学院 | C2: 签字（盖章）： | E2: 填报日期：
A3: 学号 | B3: 姓名 | C3: 综合素质评价结果 | D3: 所获荣誉称号 （请填写“优秀研究生干部”） | E3: 备注
A4: 12126054 | B4: 蔡露城 | C4: 优秀 | D4: 优秀研究生干部
A5: 22426146 | B5: 包晨琛 | C5: 优秀 | D5: 优秀研究生干部
A6: 12426096 | B6: 陈汉阳 | C6: 优秀 | D6: 优秀研究生干部
A7: 12126075 | B7: 陈泓旭 | C7: 优秀 | D7: 优秀研究生干部
A8: 22426010 | B8: 陈稼臻 | C8: 优秀 | D8: 优秀研究生干部
A9: 12226023 | B9: 陈明子 | C9: 优秀 | D9: 优秀研究生干部
A10: 12126074 | B10: 陈星宇 | C10: 优秀 | D10: 优秀研究生干部
A11: 22326043 | B11: 陈周萍 | C11: 优秀 | D11: 优秀研究生干部
A12: =VLOOKUP(B12,[1]Sheet1!$C$4:$K$165,2,0) -> 12226072 | B12: 储非 | C12: =VLOOKUP(B12,[1]Sheet1!$C$4:$K$165,9,0) -> 优秀 | D12: 优秀研究生干部
A13: =VLOOKUP(B13,[1]Sheet1!$C$4:$K$165,2,0) -> 12426041 | B13: 储迎宇 | C13: =VLOOKUP(B13,[1]Sheet1!$C$4:$K$165,9,0) -> 优秀 | D13: 优秀研究生干部
A14: =VLOOKUP(B14,[1]Sheet1!$C$4:$K$165,2,0) -> 12126031 | B14: 戴子翔 | C14: =VLOOKUP(B14,[1]Sheet1!$C$4:$K$165,9,0) -> 优秀 | D14: 优秀研究生干部
A15: 22326116 | B15: 党萍萍 | C15: 优秀 | D15: 优秀研究生干部
A16: 12526090 | B16: 杜管诗涵 | C16: 优秀 | D16: 优秀研究生干部
A17: 12126073 | B17: 范思源 | C17: 优秀 | D17: 优秀研究生干部
A18: 22326119 | B18: 付依 | C18: 优秀 | D18: 优秀研究生干部
A19: 22426114 | B19: 高邦帅 | C19: 优秀 | D19: 优秀研究生干部
A20: =VLOOKUP(B20,[1]Sheet1!$C$4:$K$165,2,0) -> 12426069 | B20: 葛天乐 | C20: =VLOOKUP(B20,[1]Sheet1!$C$4:$K$165,9,0) -> 优秀 | D20: 优秀研究生干部
A21: 22326054 | B21: 葛羽中 | C21: 优秀 | D21: 优秀研究生干部
A22: 12226097 | B22: 郭金泽 | C22: 优秀 | D22: 优秀研究生干部
A23: 12326047 | B23: 郭静筠 | C23: 优秀 | D23: 优秀研究生干部
A24: 12326089 | B24: 韩思佳 | C24: 优秀 | D24: 优秀研究生干部
A25: 22426033 | B25: 洪彦棋 | C25: 优秀 | D25: 优秀研究生干部
A26: 12326042 | B26: 胡杜楠 | C26: 优秀 | D26: 优秀研究生干部
A27: =VLOOKUP(B27,[1]Sheet1!$C$4:$K$165,2,0) -> 12126024 | B27: 贾喻晓 | C27: =VLOOKUP(B27,[1]Sheet1!$C$4:$K$165,9,0) -> 优秀 | D27: 优秀研究生干部
A28: 22426081 | B28: 江欣 | C28: 优秀 | D28: 优秀研究生干部
A29: =VLOOKUP(B29,[1]Sheet1!$C$4:$K$165,2,0) -> 22326132 | B29: 蒋双婷 | C29: =VLOOKUP(B29,[1]Sheet1!$C$4:$K$165,9,0) -> 优秀 | D29: 优秀研究生干部
A30: 12326044 | B30: 解昕宇 | C30: 优秀 | D30: 优秀研究生干部
A31: 22326060 | B31: 雷博睿 | C31: 优秀 | D31: 优秀研究生干部
A32: 12426118 | B32: 李桂秀 | C32: 优秀 | D32: 优秀研究生干部
A33: 12226074 | B33: 李文丽 | C33: 优秀 | D33: 优秀研究生干部
A34: =VLOOKUP(B34,[1]Sheet1!$C$4:$K$165,2,0) -> 12326036 | B34: 李闻天 | C34: =VLOOKUP(B34,[1]Sheet1!$C$4:$K$165,9,0) -> 优秀 | D34: 优秀研究生干部
A35: 12226087 | B35: 李昕阔 | C35: 优秀 | D35: 优秀研究生干部
A36: 12326059 | B36: 梁珈源 | C36: 优秀 | D36: 优秀研究生干部
A37: =VLOOKUP(B37,[1]Sheet1!$C$4:$K$165,2,0) -> 12326101 | B37: 林坪 | C37: =VLOOKUP(B37,[1]Sheet1!$C$4:$K$165,9,0) -> 优秀 | D37: 优秀研究生干部
A38: 12326024 | B38: 林思宸 | C38: 优秀 | D38: 优秀研究生干部
A39: 12426012 | B39: 刘宸玮 | C39: 优秀 | D39: 优秀研究生干部
A40: 12526016 | B40: 刘森 | C40: 优秀 | D40: 优秀研究生干部
A41: 12326027 | B41: 刘胜昊 | C41: 优秀 | D41: 优秀研究生干部
A42: 22426096 | B42: 刘心逸 | C42: 优秀 | D42: 优秀研究生干部
A43: 22426021 | B43: 卢嘉敏 | C43: 优秀 | D43: 优秀研究生干部
A44: 12426046 | B44: 罗子昂 | C44: 优秀 | D44: 优秀研究生干部
A45: 22326110 | B45: 孟志 | C45: 优秀 | D45: 优秀研究生干部
A46: 22426066 | B46: 阮明 | C46: 优秀 | D46: 优秀研究生干部
A47: 12326096 | B47: 沈漪杰 | C47: 优秀 | D47: 优秀研究生干部
A48: 22226094 | B48: 宋潇敏 | C48: 优秀 | D48: 优秀研究生干部
A49: =VLOOKUP(B49,[1]Sheet1!$C$4:$K$165,2,0) -> 12426053 | B49: 田君鸿 | C49: =VLOOKUP(B49,[1]Sheet1!$C$4:$K$165,9,0) -> 优秀 | D49: 优秀研究生干部
A50: =VLOOKUP(B50,[1]Sheet1!$C$4:$K$165,2,0) -> 12326090 | B50: 王国强 | C50: =VLOOKUP(B50,[1]Sheet1!$C$4:$K$165,9,0) -> 优秀 | D50: 优秀研究生干部
A51: 12126061 | B51: 王茜 | C51: 优秀 | D51: 优秀研究生干部
A52: 12326054 | B52: 王婷玉 | C52: 优秀 | D52: 优秀研究生干部
A53: 12326030 | B53: 王文波 | C53: 优秀 | D53: 优秀研究生干部
A54: 12226083 | B54: 王昕洋 | C54: 优秀 | D54: 优秀研究生干部
A55: 12226045 | B55: 王严 | C55: 优秀 | D55: 优秀研究生干部
A56: 12226034 | B56: 王耀 | C56: 优秀 | D56: 优秀研究生干部
A57: 22426059 | B57: 王一卓 | C57: 优秀 | D57: 优秀研究生干部
A58: 22326039 | B58: 王云竹 | C58: 优秀 | D58: 优秀研究生干部
A59: 22426023 | B59: 王梓同 | C59: 优秀 | D59: 优秀研究生干部
A60: 22326013 | B60: 魏星 | C60: 优秀 | D60: 优秀研究生干部
A61: 22426084 | B61: 肖奕帆 | C61: 优秀 | D61: 优秀研究生干部
A62: =VLOOKUP(B62,[1]Sheet1!$C$4:$K$165,2,0) -> 22326050 | B62: 徐颖 | C62: =VLOOKUP(B62,[1]Sheet1!$C$4:$K$165,9,0) -> 优秀 | D62: 优秀研究生干部
A63: 12426044 | B63: 焉常超 | C63: 优秀 | D63: 优秀研究生干部
A64: 12526001 | B64: 严宇超 | C64: 优秀 | D64: 优秀研究生干部
A65: =VLOOKUP(B65,[1]Sheet1!$C$4:$K$165,2,0) -> 12226093 | B65: 杨志逸 | C65: =VLOOKUP(B65,[1]Sheet1!$C$4:$K$165,9,0) -> 优秀 | D65: 优秀研究生干部
A66: 22426065 | B66: 张利萍 | C66: 优秀 | D66: 优秀研究生干部
A67: =VLOOKUP(B67,[1]Sheet1!$C$4:$K$165,2,0) -> 12326046 | B67: 赵凡雅 | C67: =VLOOKUP(B67,[1]Sheet1!$C$4:$K$165,9,0) -> 优秀 | D67: 优秀研究生干部
A68: 22426047 | B68: 赵庆龙 | C68: 优秀 | D68: 优秀研究生干部
A69: 12126020 | B69: 周富威 | C69: 优秀 | D69: 优秀研究生干部
A70: 12426084 | B70: 周宇轩 | C70: 优秀 | D70: 优秀研究生干部
A71: =VLOOKUP(B71,[1]Sheet1!$C$4:$K$165,2,0) -> 12326102 | B71: 周姿 | C71: =VLOOKUP(B71,[1]Sheet1!$C$4:$K$165,9,0) -> 优秀 | D71: 优秀研究生干部
A72: 22426130 | B72: 朱静雯 | C72: 优秀 | D72: 优秀研究生干部

Sheet 4-研究生单项荣誉
A1: 材料科学与工程学院 “研究生单项荣誉称号”汇总表
A2: 院系名称：材料科学与工程学院 | D2: 签字（盖章）： | F2: 填报日期：
A3: 学号 | B3: 姓名 | C3: 综合素质评价结果 | D3: 所获荣誉称号 （请填写“研究生单项荣誉”） | E3: 研究生单项荣誉类别 请选填“思想政治表现”、“学术（实践）创新能力”、“体育”、“美育”、“劳育” | F3: 备注
A4: 12526022 | B4: 鲍浙安 | C4: 合格 | D4: 研究生单项荣誉 | E4: 劳育
A5: 22326049 | B5: 蔡婉玥 | C5: 合格 | D5: 研究生单项荣誉 | E5: 劳育
A6: 12426038 | B6: 蔡雨佳 | C6: 合格 | D6: 研究生单项荣誉 | E6: 劳育
A7: 12326094 | B7: 陈昊 | C7: 合格 | D7: 研究生单项荣誉 | E7: 学术（实践）创新能力
A8: 22326134 | B8: 陈柳羲 | C8: 合格 | D8: 研究生单项荣誉 | E8: 思想政治表现
A9: 12426017 | B9: 陈爽 | C9: 合格 | D9: 研究生单项荣誉 | E9: 劳育
A10: 22426087 | B10: 陈忆蕊 | C10: 合格 | D10: 研究生单项荣誉 | E10: 学术（实践）创新能力
A11: 12326026 | B11: 池翰文 | C11: 合格 | D11: 研究生单项荣誉 | E11: 体育
A12: 12126053 | B12: 崔傲然 | C12: 合格 | D12: 研究生单项荣誉 | E12: 学术（实践）创新能力
A13: 22426016 | B13: 崔晓 | C13: 合格 | D13: 研究生单项荣誉 | E13: 劳育
A14: 22426044 | B14: 崔莹莹 | C14: 合格 | D14: 研究生单项荣誉 | E14: 学术（实践）创新能力
A15: 22426082 | B15: 邓晰艨 | C15: 合格 | D15: 研究生单项荣誉 | E15: 学术（实践）创新能力
A16: 22426061 | B16: 邓哲贤 | C16: 合格 | D16: 研究生单项荣誉 | E16: 学术（实践）创新能力
A17: 12226028 | B17: 付涵 | C17: 合格 | D17: 研究生单项荣誉 | E17: 美育
A18: 22426147 | B18: 古政浩 | C18: 合格 | D18: 研究生单项荣誉 | E18: 学术（实践）创新能力
A19: 22426006 | B19: 胡芳 | C19: 合格 | D19: 研究生单项荣誉 | E19: 劳育
A20: 12326098 | B20: 胡轩滢 | C20: 合格 | D20: 研究生单项荣誉 | E20: 劳育
A21: 22426037 | B21: 胡耀方 | C21: 合格 | D21: 研究生单项荣誉 | E21: 学术（实践）创新能力
A22: 12426066 | B22: 华君逸 | C22: 合格 | D22: 研究生单项荣誉 | E22: 体育
A23: 12426092 | B23: 黄昊宇 | C23: 合格 | D23: 研究生单项荣誉 | E23: 体育
A24: 22326102 | B24: 黄浦京 | C24: 合格 | D24: 研究生单项荣誉 | E24: 劳育
A25: 22326031 | B25: 黄振汉 | C25: 合格 | D25: 研究生单项荣誉 | E25: 劳育
A26: 22326014 | B26: 贾亚东 | C26: 合格 | D26: 研究生单项荣誉 | E26: 劳育
A27: 22426002 | B27: 焦宇泽 | C27: 合格 | D27: 研究生单项荣誉 | E27: 学术（实践）创新能力
A28: 22426137 | B28: 金俊泽 | C28: 合格 | D28: 研究生单项荣誉 | E28: 思想政治表现
A29: 22426034 | B29: 劳泽锋 | C29: 合格 | D29: 研究生单项荣誉 | E29: 思想政治表现
A30: 12226079 | B30: 李琛宇 | C30: 合格 | D30: 研究生单项荣誉 | E30: 体育
A31: 12426034 | B31: 李瑾阳 | C31: 合格 | D31: 研究生单项荣誉 | E31: 学术（实践）创新能力
A32: 12226027 | B32: 李岚勋 | C32: 合格 | D32: 研究生单项荣誉 | E32: 体育
A33: 22326140 | B33: 李礼 | C33: 合格 | D33: 研究生单项荣誉 | E33: 思想政治表现
A34: 22326047 | B34: 李龙 | C34: 合格 | D34: 研究生单项荣誉 | E34: 劳育
A35: 22426007 | B35: 李美辰 | C35: 合格 | D35: 研究生单项荣誉 | E35: 学术（实践）创新能力
A36: 12426082 | B36: 李璞琰 | C36: 合格 | D36: 研究生单项荣誉 | E36: 学术（实践）创新能力
A37: 22426113 | B37: 李容 | C37: 合格 | D37: 研究生单项荣誉 | E37: 体育
A38: 12226088 | B38: 李适意 | C38: 合格 | D38: 研究生单项荣誉 | E38: 思想政治表现
A39: 12226052 | B39: 李澍 | C39: 合格 | D39: 研究生单项荣誉 | E39: 体育
A40: 22326094 | B40: 李伟 | C40: 合格 | D40: 研究生单项荣誉 | E40: 体育
A41: 12326034 | B41: 李文彪 | C41: 合格 | D41: 研究生单项荣誉 | E41: 学术（实践）创新能力
A42: 12326075 | B42: 李晓莹 | C42: 合格 | D42: 研究生单项荣誉 | E42: 学术（实践）创新能力
A43: 12226033 | B43: 李馨薇 | C43: 合格 | D43: 研究生单项荣誉 | E43: 美育
A44: 12526026 | B44: 李翼廷 | C44: 合格 | D44: 研究生单项荣誉 | E44: 体育
A45: 12126044 | B45: 李雨阳 | C45: 合格 | D45: 研究生单项荣誉 | E45: 学术（实践）创新能力
A46: 22426106 | B46: 李泽源 | C46: 合格 | D46: 研究生单项荣誉 | E46: 学术（实践）创新能力
A47: 12126055 | B47: 李长丰 | C47: 合格 | D47: 研究生单项荣誉 | E47: 体育
A48: 12126030 | B48: 贾剑楠 | C48: 合格 | D48: 研究生单项荣誉 | E48: 学术（实践）创新能力
A49: 22326040 | B49: 林明泽 | C49: 合格 | D49: 研究生单项荣誉 | E49: 劳育
A50: 12526018 | B50: 林忠毅 | C50: 合格 | D50: 研究生单项荣誉 | E50: 学术（实践）创新能力
A51: 12226066 | B51: 刘幻 | C51: 合格 | D51: 研究生单项荣誉 | E51: 劳育
A52: 12226051 | B52: 刘艺 | C52: 合格 | D52: 研究生单项荣誉 | E52: 学术（实践）创新能力
A53: 22426025 | B53: 龙其冬 | C53: 合格 | D53: 研究生单项荣誉 | E53: 劳育
A54: 22326138 | B54: 龙欣 | C54: 合格 | D54: 研究生单项荣誉 | E54: 劳育
A55: 12226086 | B55: 娄芊潓 | C55: 合格 | D55: 研究生单项荣誉 | E55: 劳育
A56: 12226063 | B56: 罗逸豪 | C56: 合格 | D56: 研究生单项荣誉 | E56: 体育
A57: 22326080 | B57: 吕雄 | C57: 合格 | D57: 研究生单项荣誉 | E57: 劳育
A58: 22326062 | B58: 孟景晖 | C58: 合格 | D58: 研究生单项荣誉 | E58: 学术（实践）创新能力
A59: 12226025 | B59: 聂群霖 | C59: 合格 | D59: 研究生单项荣誉 | E59: 劳育
A60: 22426062 | B60: 任宇珂 | C60: 合格 | D60: 研究生单项荣誉 | E60: 劳育
A61: 22426064 | B61: 沈柯锋 | C61: 合格 | D61: 研究生单项荣誉 | E61: 学术（实践）创新能力
A62: 22426008 | B62: 舒芷欣 | C62: 合格 | D62: 研究生单项荣誉 | E62: 学术（实践）创新能力
A63: 22426013 | B63: 苏盟斐 | C63: 合格 | D63: 研究生单项荣誉 | E63: 学术（实践）创新能力
A64: 12526021 | B64: 孙昊文 | C64: 合格 | D64: 研究生单项荣誉 | E64: 学术（实践）创新能力
A65: 12126025 | B65: 孙曾一 | C65: 合格 | D65: 研究生单项荣誉 | E65: 体育
A66: 12426114 | B66: 唐俊文 | C66: 合格 | D66: 研究生单项荣誉 | E66: 劳育
A67: 22326010 | B67: 田立乾 | C67: 合格 | D67: 研究生单项荣誉 | E67: 体育
A68: 22426053 | B68: 汪力 | C68: 合格 | D68: 研究生单项荣誉 | E68: 体育
A69: 12426024 | B69: 王格 | C69: 合格 | D69: 研究生单项荣誉 | E69: 劳育
A70: 12426064 | B70: 王皓翔 | C70: 合格 | D70: 研究生单项荣誉 | E70: 劳育
A71: 12326076 | B71: 王静 | C71: 合格 | D71: 研究生单项荣誉 | E71: 劳育
A72: 22426029 | B72: 王书忠 | C72: 合格 | D72: 研究生单项荣誉 | E72: 学术（实践）创新能力
A73: 12326064 | B73: 王天姿 | C73: 合格 | D73: 研究生单项荣誉 | E73: 劳育
A74: 22426088 | B74: 王应雯 | C74: 合格 | D74: 研究生单项荣誉 | E74: 劳育
A75: 12426081 | B75: 文梦驰 | C75: 合格 | D75: 研究生单项荣誉 | E75: 体育
A76: 22426058 | B76: 翁高 | C76: 合格 | D76: 研究生单项荣誉 | E76: 学术（实践）创新能力
A77: 22426089 | B77: 吴武滨 | C77: 合格 | D77: 研究生单项荣誉 | E77: 劳育
A78: 12526005 | B78: 肖一鸣 | C78: 合格 | D78: 研究生单项荣誉 | E78: 劳育
A79: 22426018 | B79: 谢雅芸 | C79: 合格 | D79: 研究生单项荣誉 | E79: 学术（实践）创新能力
A80: 12426111 | B80: 辛海蒙 | C80: 合格 | D80: 研究生单项荣誉 | E80: 劳育
A81: 22326064 | B81: 忻泓哲 | C81: 合格 | D81: 研究生单项荣誉 | E81: 学术（实践）创新能力
A82: 12426008 | B82: 熊慧凡 | C82: 合格 | D82: 研究生单项荣誉 | E82: 学术（实践）创新能力
A83: 12426071 | B83: 徐宁 | C83: 合格 | D83: 研究生单项荣誉 | E83: 思想政治表现
A84: 22326017 | B84: 徐遥 | C84: 合格 | D84: 研究生单项荣誉 | E84: 思想政治表现
A85: 12226062 | B85: 许波 | C85: 合格 | D85: 研究生单项荣誉 | E85: 劳育
A86: 12426044 | B86: 焉常超 | C86: 合格 | D86: 研究生单项荣誉 | E86: 劳育
A87: 12526002 | B87: 闫晨曦 | C87: 合格 | D87: 研究生单项荣誉 | E87: 学术（实践）创新能力
A88: 12426063 | B88: 杨航 | C88: 合格 | D88: 研究生单项荣誉 | E88: 体育
A89: 22326103 | B89: 杨嘉琦 | C89: 合格 | D89: 研究生单项荣誉 | E89: 体育
A90: 12426025 | B90: 杨添皓 | C90: 合格 | D90: 研究生单项荣誉 | E90: 劳育
A91: 22326063 | B91: 杨亦霏 | C91: 合格 | D91: 研究生单项荣誉 | E91: 劳育
A92: 22426070 | B92: 杨雨菲 | C92: 合格 | D92: 研究生单项荣誉 | E92: 学术（实践）创新能力
A93: 22426028 | B93: 叶仓奂 | C93: 合格 | D93: 研究生单项荣誉 | E93: 劳育
A94: 12426032 | B94: 叶陈钦 | C94: 合格 | D94: 研究生单项荣誉 | E94: 思想政治表现
A95: 12226071 | B95: 叶浩函 | C95: 合格 | D95: 研究生单项荣誉 | E95: 学术（实践）创新能力
A96: 12326092 | B96: 叶力维 | C96: 合格 | D96: 研究生单项荣誉 | E96: 劳育
A97: 12326061 | B97: 应梦凡 | C97: 合格 | D97: 研究生单项荣誉 | E97: 劳育
A98: 22426060 | B98: 于梦丹 | C98: 合格 | D98: 研究生单项荣誉 | E98: 体育
A99: 22426144 | B99: 余风 | C99: 合格 | D99: 研究生单项荣誉 | E99: 学术（实践）创新能力
A100: 12426026 | B100: 臧子政 | C100: 合格 | D100: 研究生单项荣誉 | E100: 学术（实践）创新能力
A101: 12326093 | B101: 张恒昱 | C101: 合格 | D101: 研究生单项荣誉 | E101: 劳育
A102: 12426049 | B102: 张书沁 | C102: 合格 | D102: 研究生单项荣誉 | E102: 学术（实践）创新能力
A103: 12426104 | B103: 张怡涵 | C103: 合格 | D103: 研究生单项荣誉 | E103: 劳育
A104: 12326088 | B104: 章潘右文 | C104: 合格 | D104: 研究生单项荣誉 | E104: 劳育
A105: 22426112 | B105: 赵浩伟 | C105: 合格 | D105: 研究生单项荣誉 | E105: 学术（实践）创新能力
A106: 12226090 | B106: 赵宁馨 | C106: 合格 | D106: 研究生单项荣誉 | E106: 学术（实践）创新能力
A107: 12426033 | B107: 郑仕奇 | C107: 合格 | D107: 研究生单项荣誉 | E107: 思想政治表现
A108: 12426029 | B108: 周丹华 | C108: 合格 | D108: 研究生单项荣誉 | E108: 劳育
A109: 12326012 | B109: 周鼎鑫 | C109: 合格 | D109: 研究生单项荣誉 | E109: 体育
A110: 12326012 | B110: 周鼎鑫 | C110: 合格 | D110: 研究生单项荣誉 | E110: 劳育
A111: 12226064 | B111: 周芳 | C111: 合格 | D111: 研究生单项荣誉 | E111: 劳育
A112: 12426097 | B112: 朱晓芳 | C112: 合格 | D112: 研究生单项荣誉 | E112: 学术（实践）创新能力
A113: 22326033 | B113: 朱哲宽 | C113: 合格 | D113: 研究生单项荣誉 | E113: 劳育
